bitfinex-derivatives/quotes_ETHF0:USTF0_20240904
["timestamp","ask_amount","ask_price","bid_price","bid_amount"]
[1725459634601,1.08170791,2403.0,2402.7,0.4162]
[1725459634797,1.08170791,2403.0,2402.6,3.2078]
[1725459634798,1.08170791,2403.1,2402.6,3.2078]
[1725459635199,1.08170791,2403.1,2403.0,0.41616]
[1725459635808,1.0879531,2403.2,2403.0,0.41616]
[1725459636304,1.0879531,2403.2,2402.9,3.62396]
[1725459636509,1.0879531,2403.2,2403.0,0.41616]
[1725459636707,1.0879531,2403.2,2402.6,1.3913]
[1725459636915,1.0879531,2403.2,2402.4,4.01819144]
[1725459636916,4.28950791,2403.1,2402.4,3.2078]
[1725459637207,4.28950791,2403.1,2402.2,0.41629]
[1725459637208,0.41623,2402.7,2402.2,0.41629]
[1725459637405,1.08170791,2402.7,2402.2,0.41629]
[1725459637714,1.08170791,2402.7,2402.1,3.62411]
[1725459637715,1.70510791,2402.7,2402.1,3.62411]
[1725459638014,4.28950791,2402.5,2402.0,0.00624519]
[1725459638199,0.41628,2402.4,2402.0,0.42258519]
[1725459638404,0.41628,2402.4,2402.0,0.42257519]
[1725459638405,1.08170791,2402.4,2402.0,0.42257519]
[1725459638709,1.08170791,2402.4,2402.0,3.21404519]
[1725459638898,1.08170791,2402.5,2402.0,3.21404519]
[1725459639101,1.08170791,2402.4,2402.0,3.21404519]
[1725459639413,1.08170791,2402.4,2402.0,3.63037519]
[1725459639601,1.08170791,2402.4,2402.0,3.21404519]
[1725459639906,1.08170791,2402.5,2402.1,0.41631]
[1725459640206,1.08170791,2402.5,2402.2,0.41629]
[1725459640411,1.08170791,2402.5,2402.0,3.21404519]
[1725459640705,1.08170791,2402.6,2402.3,0.41627]
[1725459641011,1.08170791,2402.5,2402.0,0.00624519]
[1725459641306,0.41628,2402.3,2402.0,0.00624519]
[1725459641504,4.28950791,2402.2,2402.0,0.00624519]
[1725459641810,2.03928562,2402.1,2402.0,0.00624519]
[1725459642007,6.86429428,2402.1,2400.9,0.67]
[1725459642207,1.08321035,2401.7,2401.0,0.55831132]
[1725459642408,2.70802588,2401.8,2401.1,3.76611132]
[1725459642609,2.70802588,2401.8,2401.5,0.41642]
[1725459642610,1.08321035,2401.8,2401.5,0.41642]
[1725459643006,1.08321035,2401.8,2401.2,0.5582893]
[1725459643199,1.08321035,2401.8,2401.1,3.2078]
[1725459643513,1.08321035,2401.8,2401.3,0.41646]
[1725459643703,1.08321035,2401.8,2401.1,3.2078]
[1725459643904,1.08945554,2401.9,2401.4,0.41643]
[1725459644099,1.08945554,2401.9,2401.5,0.41642]
[1725459644303,0.00624519,2401.9,2401.6,0.20637187]
[1725459644506,0.00624519,2401.9,2401.8,0.41637]
[1725459644703,0.00624519,2401.9,2401.5,3.2078]
[1725459645011,0.41637,2401.8,2401.1,3.2078]
[1725459645213,0.00624519,2401.9,2401.2,0.97476208]
[1725459645214,0.4164,2401.7,2401.2,0.97476208]
[1725459645415,1.08321035,2401.8,2401.1,3.2078]
[1725459645617,1.08321035,2401.7,2401.1,3.62428]
[1725459645908,3.2078,2401.4,2400.8,0.41654]
[1725459646102,3.2078,2401.4,2400.9,0.41652]
[1725459646103,1.69331035,2401.3,2400.9,0.41652]
[1725459646301,1.69331035,2401.3,2400.8,0.41653]
[1725459646505,0.6101,2401.3,2400.6,3.2078]
[1725459646705,0.6101,2401.3,2400.8,0.41653]
[1725459646900,0.6101,2401.3,2400.6,3.2078]
[1725459646901,0.6101,2401.3,2400.9,0.41652]
[1725459647113,0.6101,2401.3,2400.6,3.2078]
[1725459647412,0.6101,2401.3,2400.7,0.55838628]
[1725459647718,0.41648,2401.2,2400.7,0.41656]
[1725459647918,1.69331035,2401.3,2400.8,0.41654]
[1725459647919,2.10977035,2401.3,2400.8,0.41654]
[1725459648108,0.41648,2401.2,2400.7,0.41655]
[1725459648313,2.10977035,2401.3,2400.8,0.41654]
[1725459648616,2.10977035,2401.3,2400.3,4.60352723]
[1725459648617,4.70745035,2401.4,2400.9,0.41651]
[1725459648813,5.35965035,2401.4,2400.9,0.41651]
[1725459649018,5.35965035,2401.4,2401.0,0.41651]
[1725459649502,5.35965035,2401.4,2400.9,0.41652]
[1725459649710,4.94321035,2401.4,2401.0,0.41651]
[1725459650007,0.41648,2401.2,2400.6,3.2078]
[1725459650311,0.4165,2401.1,2400.7,0.41655]
[1725459650507,0.4165,2401.1,2400.7,0.41656]
[1725459650715,0.4165,2401.1,2400.4,0.7073275]
[1725459650913,0.6443,2401.2,2400.7,0.41656]
[1725459651112,4.8,2401.3,2400.5,0.55840223]
[1725459651413,5.35966035,2401.4,2400.9,0.41651]
[1725459651617,5.35966035,2401.4,2400.7,1.04141]
[1725459651618,3.86,2401.4,2400.7,1.04141]
[1725459651811,4.27645,2401.4,2401.0,0.4165]
[1725459652017,1.08321035,2401.5,2401.0,3.2078]
[1725459652310,4.53339,2401.7,2401.3,0.41644]
[1725459652516,5.33199035,2401.7,2401.0,3.2078]
[1725459652711,5.84102,2401.6,2400.8,1.2355]
[1725459653008,0.41645,2401.4,2401.0,0.4165]
[1725459653212,0.41645,2401.4,2401.1,0.41649]
[1725459653443,0.41643,2401.5,2401.2,0.41647]
[1725459653610,4.29101035,2401.7,2400.9,1.04129]
[1725459653812,4.29101035,2401.7,2401.1,0.41648]
[1725459653813,1.08321035,2401.6,2401.1,0.41648]
[1725459654114,4.29101035,2401.7,2401.0,1.04128]
[1725459654421,1.08945554,2401.9,2401.4,1.0411]
[1725459654597,0.00624519,2401.9,2401.8,0.41637]
[1725459655410,0.00624519,2401.9,2401.8,4.57957]
[1725459655616,0.00624519,2401.9,2401.8,0.41637]
[1725459657711,1.08321035,2402.4,2402.3,0.41628]
[1725459657913,1.08321035,2402.4,2401.6,11.36822]
[1725459657914,4.92841035,2402.6,2402.0,0.20423764]
[1725459658120,1.08321035,2402.5,2401.6,1.2784]
[1725459658313,1.08321035,2402.5,2401.9,0.41635]
[1725459658314,6.92390035,2402.4,2401.9,0.41635]
[1725459658616,1.08321035,2402.3,2401.7,1.04098]
[1725459658818,1.08321035,2402.3,2401.8,0.00624519]
[1725459658819,0.00624519,2402.2,2401.8,0.00624519]
[1725459659114,0.00624519,2402.2,2402.0,0.41633]
[1725459659620,0.41632,2402.1,2401.8,0.42261519]
[1725459659814,0.42255519,2402.2,2401.9,0.41635]
[1725459660117,0.41634,2402.0,2401.8,0.00624519]
[1725459660508,0.41635,2401.9,2401.8,0.00624519]
[1725459660915,0.41634,2402.0,2401.8,0.00624519]
[1725459661112,1.08945554,2402.2,2401.8,0.00624519]
[1725459661313,1.50575554,2402.2,2402.0,0.41633]
[1725459661517,5.204,2402.1,2401.8,0.00624519]
[1725459661812,0.41635,2401.9,2401.8,0.00624519]
[1725459662019,0.41641,2401.6,2401.0,1.2794]
[1725459662215,0.41645,2401.4,2401.1,0.41648]
[1725459662417,9.09101035,2401.6,2400.8,0.55836567]
[1725459662611,0.41645,2401.4,2400.7,0.20676409]
[1725459662911,0.41645,2401.4,2401.1,0.41648]
[1725459663118,1.49964035,2401.5,2401.2,0.41647]
[1725459663309,0.41644,2401.4,2401.1,0.41648]
[1725459663509,1.49964035,2401.5,2401.2,0.41647]
[1725459663717,6.29962035,2401.6,2401.3,0.41644]
[1725459664017,5.88321035,2401.6,2400.7,4.24921]
[1725459664216,1.08321035,2401.5,2400.8,1.04137]
[1725459664417,1.08321035,2401.5,2400.6,0.55836011]
[1725459664418,1.08321035,2401.5,2400.4,3.35787415]
[1725459664621,1.08321035,2401.5,2400.9,0.41652]
[1725459664622,0.41648,2401.2,2400.9,0.41652]
[1725459665007,4.70748035,2401.3,2401.0,0.41651]
[1725459665210,1.08321035,2401.5,2401.3,0.41645]
[1725459665409,5.20021035,2401.6,2400.8,4.24915]
[1725459665654,5.20021035,2401.6,2401.0,0.41649]
[1725459665655,0.41645,2401.4,2401.0,0.41649]
[1725459665875,0.41646,2401.3,2401.0,0.4165]
[1725459666015,3.2078,2401.1,2400.9,0.41653]
[1725459666411,10.13212035,2401.4,2400.8,0.41654]
[1725459666611,0.00624519,2401.3,2400.4,1.39574991]
[1725459666820,0.00624519,2401.3,2400.5,1.0415]
[1725459667117,0.41648,2401.2,2400.9,0.41652]
[1725459667324,0.41652,2401.0,2400.7,0.41655]
[1725459667514,3.2078,2401.1,2400.4,0.20416576]
[1725459667717,2.71427107,2401.3,2400.8,4.24913]
[1725459667917,0.00624519,2401.3,2401.2,0.41647]
[1725459668119,0.00624519,2401.3,2400.9,3.2078]
[1725459668316,0.00624519,2401.3,2400.5,1.59983112]
[1725459668518,0.00624519,2401.3,2401.0,0.4165]
[1725459668716,0.00624519,2401.3,2400.6,3.2078]
[1725459669027,0.00624519,2401.3,2401.0,0.4165]
[1725459669226,0.00624519,2401.3,2400.6,3.2078]
[1725459669227,4.80624519,2401.3,2400.6,3.2078]
[1725459669540,0.41653,2400.9,2400.4,0.41661]
[1725459669714,1.08321035,2400.9,2400.5,0.41658]
[1725459669914,1.08321035,2400.9,2400.3,1.3313]
[1725459669915,1.73381035,2400.9,2400.6,0.41658]
[1725459670114,0.6506,2400.9,2400.6,0.41658]
[1725459670916,1.06713,2400.9,2400.5,0.41659]
[1725459671116,1.06713,2400.9,2400.6,0.41658]
[1725459671117,0.6506,2400.9,2400.6,0.41658]
[1725459671314,0.6506,2400.9,2400.5,0.41658]
[1725459671517,1.06713,2400.9,2400.5,0.41658]
[1725459671717,0.41663,2400.3,2400.2,0.00329694]
[1725459671922,1.45821,2400.3,2400.2,0.00329694]
[1725459672225,12.66619,2400.3,2400.2,0.00329694]
[1725459672423,12.66619,2400.3,2398.8,4.5131]
[1725459672424,1.04796519,2400.0,2398.8,4.5131]
[1725459672616,4.8,2399.6,2399.4,0.41679]
[1725459672829,4.8,2399.6,2399.5,0.41677]
[1725459673123,5.21676,2399.6,2398.8,5.1569]
[1725459673322,4.8,2399.6,2398.8,5.30378259]
[1725459673519,3.2078,2399.8,2398.9,1.04219]
[1725459673828,0.00624519,2400.0,2399.1,8.0078]
[1725459674026,0.00624519,2400.0,2399.9,0.4167]
[1725459674422,0.00624519,2400.0,2399.9,4.5831]
[1725459674926,4.8,2400.7,2400.2,0.41664]
[1725459675133,4.8,2400.7,2400.4,0.41661]
[1725459675335,4.8,2400.7,2399.9,0.6066]
[1725459675524,0.4166,2400.5,2399.9,0.6066]
[1725459675720,0.41663,2400.3,2399.9,0.6066]
[1725459675926,0.41663,2400.3,2399.9,0.61284519]
[1725459675927,0.41667,2400.1,2399.9,0.61284519]
[1725459676228,3.21404519,2400.3,2399.9,0.00624519]
[1725459676431,0.41667,2400.1,2399.9,0.00624519]
[1725459676622,0.41668,2400.0,2399.9,0.00624519]
[1725459676822,4.27788,2400.0,2399.9,0.00624519]
[1725459677020,5.83366,2400.2,2399.9,0.00624519]
[1725459677229,0.41667,2400.1,2399.9,0.00624519]
[1725459677426,0.41668,2400.0,2399.9,0.00624519]
[1725459677626,4.58308,2400.0,2399.9,0.00624519]
[1725459677929,4.1664,2400.0,2399.9,0.00624519]
[1725459678120,3.21404519,2400.3,2399.9,0.00624519]
[1725459678325,0.00624519,2400.3,2399.9,0.00624519]
[1725459678532,1.04176,2399.9,2399.1,0.41683]
[1725459678830,0.41677,2399.5,2399.1,0.41683]
[1725459679023,0.41677,2399.5,2399.0,0.62859553]
[1725459679239,3.2078,2399.6,2398.8,4.5226]
[1725459679422,3.2078,2399.6,2398.8,4.72825933]
[1725459679621,0.41682,2399.3,2398.8,5.14513933]
[1725459679832,4.8,2399.4,2398.8,3.8554]
[1725459680028,0.41687,2399.0,2398.5,3.62474]
[1725459680231,0.41687,2399.0,2398.5,3.41139585]
[1725459680232,3.2078,2398.9,2398.5,3.41139585]
[1725459680418,0.4169,2398.8,2398.4,0.55867953]
[1725459680728,5.4579,2398.8,2398.4,0.55867953]
[1725459681118,3.2078,2398.9,2398.5,0.41693]
[1725459681426,0.00624519,2399.0,2398.5,3.2078]
[1725459681625,0.00624519,2399.0,2398.4,0.55867953]
[1725459681927,3.2078,2398.9,2398.4,0.55867953]
[1725459682125,3.2078,2398.6,2398.4,0.55867953]
[1725459682429,6.25931,2398.5,2398.4,0.55243434]
[1725459682729,11.08681,2398.5,2398.4,0.55243434]
[1725459682920,17.08681,2398.5,2398.4,0.55243434]
[1725459683317,17.08681,2398.5,2397.5,2.32807]
[1725459683318,16.66987,2398.5,2397.8,0.41706]
[1725459683522,16.66987,2398.5,2397.5,1.2853]
[1725459683523,3.2078,2398.1,2397.5,1.2853]
[1725459683729,3.62482,2398.1,2397.8,0.41706]
[1725459683929,3.2078,2398.1,2397.8,0.41705]
[1725459684225,3.2078,2398.1,2397.8,0.41706]
[1725459684226,7.79521,2398.1,2397.8,0.41706]
[1725459684428,7.79521,2398.1,2396.9,8.0078]
[1725459684429,4.8,2397.9,2396.7,1.04314]
[1725459684623,3.21404519,2397.5,2396.7,1.04315]
[1725459684821,4.80624519,2397.5,2396.9,1.04303]
[1725459685024,0.00624519,2397.5,2397.4,0.41713]
[1725459685531,0.00624519,2397.5,2397.4,4.58833]
[1725459685832,0.6262,2398.4,2398.2,0.41698]
[1725459685833,4.8,2398.4,2398.2,0.41698]
[1725459686038,3.2078,2398.3,2398.2,0.417]
[1725459686824,3.2078,2398.3,2398.0,0.00624519]
[1725459687226,3.2078,2398.3,2398.1,0.417]
[1725459687429,8.9696,2398.2,2398.0,0.00624519]
[1725459687730,0.41701,2398.1,2398.0,0.00624519]
[1725459687934,4.7795,2398.1,2398.0,0.00624519]
[1725459688132,5.4506,2398.2,2398.0,0.00624519]
[1725459688133,3.2078,2398.3,2398.0,0.42326519]
[1725459688331,3.2078,2398.3,2398.0,0.00624519]
[1725459688526,8.9696,2398.2,2398.0,0.00624519]
[1725459688760,4.8,2398.2,2398.0,0.00624519]
[1725459688930,3.2078,2398.3,2398.0,0.00624519]
[1725459689338,3.2078,2398.3,2398.1,0.41701]
[1725459689534,3.2078,2398.3,2398.0,0.42326519]
[1725459689730,3.2078,2398.3,2398.0,0.00624519]
[1725459690233,8.9696,2398.2,2398.0,0.00624519]
[1725459690429,4.8,2398.2,2398.0,0.42326519]
[1725459690629,3.2078,2398.3,2398.2,0.417]
[1725459690927,3.2078,2398.3,2398.0,0.00624519]
[1725459690928,0.00624519,2398.5,2398.0,0.00624519]
[1725459691123,0.00624519,2398.5,2398.3,0.41696]
[1725459691332,4.17584519,2398.5,2398.3,0.41696]
[1725459691531,4.17584519,2398.5,2398.4,0.41696]
[1725459691730,0.00624519,2398.5,2398.4,0.41696]
[1725459692145,0.00624519,2398.5,2398.1,1.03741]
[1725459692327,0.00624519,2398.5,2398.1,4.24521]
[1725459692642,3.21404519,2398.5,2398.1,0.6204]
[1725459692831,0.00624519,2398.5,2398.1,0.6204]
[1725459693027,0.00624519,2398.5,2398.4,0.41696]
[1725459693231,0.00624519,2398.5,2398.1,0.6204]
[1725459693845,0.00624519,2398.5,2398.4,0.41696]
[1725459694046,0.00624519,2398.5,2398.2,0.417]
[1725459694340,0.00624519,2398.5,2398.4,0.41696]
[1725459697639,0.41678,2399.5,2398.6,1.04229]
[1725459697846,0.6562,2399.6,2399.0,3.2078]
[1725459698042,3.2078,2399.5,2399.3,0.4168]
[1725459698233,0.6562,2399.6,2399.3,0.4168]
[1725459698438,0.6562,2399.6,2399.5,0.41677]
[1725459698640,0.6562,2399.6,2399.4,0.41678]
[1725459698834,0.6562,2399.6,2399.2,0.63260668]
[1725459699039,3.2078,2399.6,2399.4,0.41678]
[1725459699640,0.00624519,2399.7,2399.2,0.21579668]
[1725459699641,0.00624519,2399.7,2399.6,0.41675]
[1725459701146,0.00624519,2399.7,2399.6,4.58395]
[1725459701337,0.00624519,2399.7,2399.6,3.62455]
[1725459701746,0.00624519,2399.7,2399.4,0.6452]
[1725459702339,0.00624519,2399.7,2399.2,0.00624519]
[1725459702340,3.21404519,2399.7,2399.2,0.00624519]
[1725459702537,3.6246,2399.4,2399.2,0.00624519]
[1725459702743,3.62459,2399.4,2399.2,0.00624519]
[1725459702935,7.3758,2399.4,2399.2,0.00624519]
[1725459703141,4.5848,2399.3,2399.2,0.00624519]
[1725459703343,4.168,2399.3,2399.2,0.00624519]
[1725459704250,0.00624519,2399.7,2399.2,0.00624519]
[1725459704451,0.00624519,2399.7,2399.6,0.41675]
[1725459705053,3.2078,2400.2,2400.1,0.41667]
[1725459705249,3.2078,2400.6,2399.7,3.8782]
[1725459705548,3.2078,2400.3,2399.7,4.92002]
[1725459705745,0.4166,2400.5,2399.7,4.92002]
[1725459706046,3.2078,2400.6,2400.2,0.41664]
[1725459706047,0.00624519,2400.3,2400.2,0.41664]
[1725459706252,0.00624519,2400.3,2400.1,0.41665]
[1725459706548,0.00624519,2400.3,2399.8,0.6674]
[1725459706740,3.21404519,2400.3,2399.7,3.8782]
[1725459706941,3.21404519,2400.3,2399.4,0.41677]
[1725459706942,3.2078,2400.0,2399.4,0.41677]
[1725459707154,3.2078,2400.0,2399.3,1.70938]
[1725459707346,1.07686,2400.2,2399.4,1.04197]
[1725459707540,0.41667,2400.1,2399.7,0.41673]
[1725459707746,0.6602,2400.2,2399.3,0.6674]
[1725459707747,0.6602,2400.2,2399.4,1.04197]
[1725459708149,0.6602,2400.2,2399.3,0.6674]
[1725459708150,0.42288519,2400.3,2399.9,0.41669]
[1725459708351,0.42288519,2400.3,2399.8,0.41671]
[1725459708352,0.41665,2400.2,2399.8,0.41671]
[1725459708550,0.41665,2400.2,2399.6,0.41675]
[1725459708551,3.62449,2400.0,2399.6,0.41675]
[1725459708857,0.41674,2399.7,2399.3,0.4168]
[1725459709247,1.2633,2399.9,2399.2,0.42306519]
[1725459709248,1.0418,2399.8,2399.2,0.42306519]
[1725459709458,0.41674,2399.7,2399.3,0.4168]
[1725459709755,0.41673,2399.8,2399.4,0.41679]
[1725459709955,1.68001,2399.9,2399.4,0.41679]
[1725459710343,1.2633,2399.9,2399.2,0.00624519]
[1725459710543,4.8,2399.8,2399.2,0.00624519]
[1725459710747,4.8,2399.6,2399.2,0.00624519]
[1725459710948,5.2168,2399.3,2399.2,0.00624519]
[1725459711142,5.2168,2399.3,2398.5,3.8156]
[1725459711143,0.41683,2399.2,2398.5,0.6078]
[1725459711348,5.21681,2399.3,2398.5,0.6078]
[1725459711656,0.6568,2399.2,2398.6,1.04232]
[1725459711857,0.6568,2399.2,2399.0,0.41685]
[1725459712059,3.2078,2399.4,2398.5,0.6078]
[1725459712060,3.2078,2399.4,2398.7,3.2078]
[1725459712248,3.2078,2399.1,2398.8,0.00624519]
[1725459712450,5.87985519,2399.3,2398.8,0.00624519]
[1725459712643,0.66304519,2399.3,2398.8,0.00624519]
[1725459712848,0.66304519,2399.3,2399.0,0.41684]
[1725459713050,0.66304519,2399.3,2399.0,0.41685]
[1725459713256,0.66304519,2399.3,2398.8,0.00624519]
[1725459713257,4.58483,2399.2,2398.8,0.42313519]
[1725459713456,0.41684,2399.1,2398.8,0.00624519]
[1725459713654,0.66304519,2399.3,2398.8,0.00624519]
[1725459713655,3.62466,2399.0,2398.8,0.00624519]
[1725459713847,0.41687,2398.9,2398.8,0.00624519]
[1725459714049,4.1688,2398.9,2398.8,0.00624519]
[1725459714249,4.58567,2398.9,2398.8,0.00624519]
[1725459714699,4.58567,2398.9,2398.1,0.6239]
[1725459714700,1.04229,2398.7,2398.1,0.6239]
[1725459714862,3.2078,2398.8,2398.1,0.6239]
[1725459715047,3.2078,2398.8,2398.7,0.41691]
[1725459715755,1.7075335,2399.3,2398.5,3.21404519]
[1725459715756,3.2078,2399.2,2398.5,3.21404519]
[1725459715958,4.23703,2399.2,2398.7,0.4169]
[1725459716149,3.8202,2399.2,2398.7,0.4169]
[1725459716353,0.41686,2399.0,2398.6,0.41692]
[1725459716654,3.8202,2399.2,2398.5,0.00624519]
[1725459716865,3.8202,2399.2,2399.1,0.41684]
[1725459716866,3.2078,2399.2,2399.1,0.41684]
[1725459717059,3.2078,2399.2,2398.6,1.04232]
[1725459717060,0.00624519,2399.3,2399.0,0.20334204]
[1725459717357,0.00624519,2399.3,2398.7,0.606]
[1725459717560,0.00624519,2399.3,2398.9,0.41686]
[1725459718054,0.42304519,2399.3,2398.9,0.41686]
[1725459718246,0.00624519,2399.3,2398.7,0.606]
[1725459718448,0.42306519,2399.3,2398.7,0.606]
[1725459718651,0.42305519,2399.3,2398.7,0.606]
[1725459718855,0.00624519,2399.3,2398.7,0.606]
[1725459719062,0.00624519,2399.3,2399.2,0.41682]
[1725459719359,0.00624519,2399.3,2398.9,0.41686]
[1725459719562,3.2078,2399.2,2398.7,0.606]
[1725459719758,0.41686,2399.0,2398.7,0.606]
[1725459720065,0.41686,2399.0,2398.5,0.61064519]
[1725459720066,3.2078,2398.9,2398.5,0.61064519]
[1725459720260,3.62469,2398.9,2398.5,0.00624519]
[1725459720450,3.2078,2398.9,2398.5,0.00624519]
[1725459720782,0.6201,2399.2,2398.5,0.00624519]
[1725459721149,0.00624519,2399.3,2398.5,1.04858519]
[1725459721349,0.00624519,2399.3,2398.8,0.41688]
[1725459721548,0.00624519,2399.3,2399.1,0.41682]
[1725459721854,0.00624519,2399.3,2399.1,0.41683]
[1725459722060,0.00624519,2399.3,2399.2,0.41682]
[1725459722846,5.49908246,2399.8,2399.7,0.41673]
[1725459722847,3.2078,2399.8,2399.7,0.41673]
[1725459723462,1.07998831,2400.1,2399.4,1.68866]
[1725459723463,1.08208225,2400.0,2399.4,1.68866]
[1725459723658,4.28988225,2400.1,2400.0,0.41668]
[1725459723851,4.28988225,2400.1,2399.4,1.68866]
[1725459723852,8.45628225,2400.1,2399.8,0.42294519]
[1725459724053,4.28988225,2400.1,2400.0,0.41668]
[1725459724353,7.3742,2400.1,2399.8,0.00624519]
[1725459724559,4.28988225,2400.1,2399.9,0.41669]
[1725459724764,3.2078,2400.1,2399.9,0.41669]
[1725459725160,3.2078,2400.1,2399.8,0.00624519]
[1725459725361,1.75102744,2400.3,2399.8,4.17264519]
[1725459725362,0.00624519,2400.3,2399.8,4.17264519]
[1725459725663,3.2078,2400.2,2399.8,0.00624519]
[1725459725865,3.2078,2400.2,2399.8,0.42295519]
[1725459726070,4.28988225,2400.2,2399.8,0.00624519]
[1725459726560,0.00624519,2400.3,2400.1,0.41666]
[1725459726764,0.00624519,2400.3,2399.9,0.41669]
[1725459727155,0.00624519,2400.3,2398.9,3.2078]
[1725459727156,4.24954,2400.0,2398.9,3.2078]
[1725459727351,4.28858823,2399.7,2399.0,0.6335]
[1725459727555,3.6246,2399.4,2399.0,0.6335]
[1725459727754,0.41684,2399.1,2398.9,0.6535]
[1725459727950,0.41683,2399.2,2398.6,0.41692]
[1725459728153,1.08078823,2399.3,2398.3,1.81343043]
[1725459728154,3.63089519,2399.1,2398.7,0.00624519]
[1725459728355,0.00624519,2399.1,2398.7,0.00624519]
[1725459728754,3.21404519,2399.1,2398.7,0.00624519]
[1725459728959,4.71168342,2399.1,2398.7,0.00624519]
[1725459729162,4.29483342,2399.1,2398.7,0.00624519]
[1725459729361,3.62469,2398.8,2398.7,0.00624519]
[1725459729661,0.41697,2398.4,2397.9,0.6168]
[1725459729962,1.04228,2398.7,2397.7,0.41708]
[1725459729963,3.2078,2398.1,2397.7,0.41708]
[1725459730270,3.2078,2398.1,2397.6,0.6168]
[1725459730561,1.62011974,2398.4,2397.7,0.97595446]
[1725459730562,4.70484982,2398.4,2397.7,0.97595446]
[1725459730867,4.70484982,2398.4,2397.6,0.6168]
[1725459730868,1.08007982,2398.3,2397.8,0.21142323]
[1725459731064,1.08007982,2398.3,2397.6,0.6168]
[1725459731253,1.08007982,2398.5,2397.9,0.41703]
[1725459731453,1.08007982,2398.5,2397.6,0.6168]
[1725459731454,1.08007982,2398.5,2397.8,0.20594011]
[1725459731674,1.08007982,2398.5,2397.9,0.55885737]
[1725459731957,1.08007982,2398.6,2398.0,1.6340515]
[1725459732163,1.08007982,2398.5,2398.1,0.41701]
[1725459732365,1.08007982,2398.5,2398.0,0.6582]
[1725459733161,1.49701982,2398.5,2398.0,0.6582]
[1725459733358,1.08007982,2398.5,2398.0,1.07523]
[1725459733661,1.08007982,2398.5,2398.0,0.6582]
[1725459733662,1.49702982,2398.5,2398.0,0.6582]
[1725459733862,1.08007982,2398.5,2398.0,0.6582]
[1725459734058,1.74787982,2398.4,2398.0,0.6582]
[1725459734569,1.74787982,2398.4,2397.7,0.62237381]
[1725459734773,1.74787982,2398.4,2397.6,0.6168]
[1725459734774,0.41701,2398.1,2397.6,0.6168]
[1725459735064,3.2078,2397.9,2397.4,0.6373]
[1725459735272,3.21404519,2397.9,2397.4,1.05442]
[1725459735467,3.21404519,2397.9,2397.4,0.6373]
[1725459735468,3.63109519,2397.9,2397.4,0.6373]
[1725459735661,4.29412501,2397.9,2397.4,1.05443]
[1725459735959,4.29412501,2397.9,2397.1,0.41718]
[1725459735960,3.62492,2397.6,2397.1,0.41718]
[1725459736166,4.28787982,2397.6,2397.1,0.41718]
[1725459736364,4.28787982,2397.6,2396.9,0.55900162]
[1725459736563,1.62011974,2397.8,2397.4,0.41713]
[1725459736564,1.08007982,2397.8,2397.4,0.41713]
[1725459736768,3.62491,2397.6,2397.0,0.4172]
[1725459736965,3.62491,2397.6,2397.0,0.41719]
[1725459737170,3.2078,2397.6,2396.8,1.2967]
[1725459737462,3.6249,2397.6,2397.0,0.41719]
[1725459737680,3.6249,2397.6,2396.8,1.2967]
[1725459737681,3.62491,2397.6,2396.8,1.2967]
[1725459737863,0.41712,2397.5,2397.0,0.41719]
[1725459738068,3.2078,2397.6,2397.1,0.41718]
[1725459738463,3.2078,2397.6,2396.8,1.2967]
[1725459738659,3.2078,2397.6,2397.5,0.41712]
[1725459738860,3.21404519,2397.9,2397.0,3.2078]
[1725459739072,3.21404519,2397.9,2397.3,0.41714]
[1725459739268,3.63109519,2397.9,2397.3,0.41714]
[1725459739464,0.41708,2397.8,2397.3,0.41714]
[1725459739767,3.21404519,2397.9,2397.6,0.41709]
[1725459739975,3.21404519,2397.9,2397.1,1.04297]
[1725459740172,3.21404519,2397.9,2397.7,0.41708]
[1725459740472,0.00624519,2397.9,2397.8,0.41706]
[1725459740669,0.00624519,2397.9,2397.8,0.63089356]
[1725459740967,0.00624519,2397.9,2397.8,10.80129356]
[1725459741165,0.00624519,2397.9,2397.8,4.80129356]
[1725459741366,0.00624519,2397.9,2397.8,15.05176356]
[1725459742279,0.00624519,2397.9,2397.8,16.09443356]
[1725459742474,8.2078,2399.0,2398.7,0.4169]
[1725459742774,8.2078,2399.0,2398.3,1.04244]
[1725459742775,3.2078,2399.0,2398.3,1.04244]
[1725459742980,6.62011974,2399.4,2398.6,1.04232]
[1725459742981,3.2078,2399.4,2398.6,1.04232]
[1725459743272,3.2078,2399.4,2398.7,0.6154]
[1725459743488,0.00624519,2399.3,2398.9,0.41687]
[1725459743670,0.00624519,2399.3,2398.8,0.00624519]
[1725459743871,0.00624519,2399.3,2398.9,0.41687]
[1725459744179,0.00624519,2399.3,2398.8,0.00624519]
[1725459745575,0.41683,2399.2,2398.8,0.00624519]
[1725459745878,0.654,2399.2,2398.8,0.00624519]
[1725459746371,3.2078,2399.1,2398.8,0.00624519]
[1725459746568,0.41687,2399.0,2398.8,0.00624519]
[1725459746772,9.58566,2399.0,2398.8,0.00624519]
[1725459747071,4.58567,2398.9,2398.8,0.00624519]
[1725459747371,0.41702,2398.1,2397.5,0.6261]
[1725459747576,3.2078,2398.4,2397.8,0.20484711]
[1725459747774,0.41699,2398.3,2397.8,0.62190711]
[1725459748173,0.41699,2398.3,2397.2,2.3209]
[1725459748174,3.2078,2398.4,2397.4,4.25064]
[1725459748372,3.2078,2398.4,2398.2,0.41699]
[1725459748572,3.2078,2398.4,2398.1,0.417]
[1725459748969,0.00624519,2398.5,2398.2,0.41699]
[1725459749173,0.42319519,2398.5,2398.0,0.20868343]
[1725459749379,0.00624519,2398.5,2398.1,0.417]
[1725459749571,0.00624519,2398.5,2397.8,0.6165]
[1725459749774,0.00624519,2398.5,2397.8,0.82228534]
[1725459749970,1.08151929,2399.2,2398.7,0.4169]
[1725459750172,3.2078,2399.3,2398.8,0.41688]
[1725459750376,3.6246,2399.3,2398.3,3.2078]
[1725459750575,0.41685,2399.1,2398.5,0.41694]
[1725459750879,0.41685,2399.1,2398.4,0.6712]
[1725459750880,0.41683,2399.2,2398.6,0.41692]
[1725459751078,0.00624519,2399.1,2398.7,0.00624519]
[1725459751283,0.42309519,2399.1,2398.7,0.00624519]
[1725459751476,0.41686,2399.0,2398.7,0.00624519]